fUST/lending_fUST_20250603
["ID","MTS","AMOUNT","RATE_DAILY","PERIOD"]
[363935930,1748939442899,-500.0,0.00017114,2]
[363935932,1748939442908,-501.06732276,0.00017114,2]
[363935934,1748939442917,-553.57847065,0.00017125,2]
[363935936,1748939442926,-300.2942206,0.00017136,2]
[363935938,1748939442936,-500.0,0.00017136,2]
[363935940,1748939442945,-500.0,0.00017136,2]
[363935942,1748939442954,-500.0,0.00017136,2]
[363935944,1748939442963,-500.0,0.00017136,2]
[363935946,1748939442972,-501.11294187,0.00017136,2]
[363935948,1748939442982,-500.0,0.00017136,2]
[363935950,1748939442991,-501.96633342,0.00017136,2]
[363935952,1748939443001,-500.0,0.00017136,2]
[363935954,1748939443010,-500.0,0.00017136,2]
[363935956,1748939443023,-516.50162892,0.00017136,2]
[363935958,1748939443033,-500.0,0.00017141,2]
[363935960,1748939443042,-165.56786385,0.00017143,2]
[363935962,1748939443051,-500.0,0.00017143,2]
[363935964,1748939443061,-500.0,0.00017143,2]
[363935966,1748939443071,-500.0,0.00017143,2]
[363935968,1748939443080,-500.0,0.00017143,2]
[363935970,1748939443089,-500.0,0.00017143,2]
[363935972,1748939443100,-500.0,0.00017158,2]
[363935974,1748939443110,-500.0,0.00017159,2]
[363935976,1748939443122,-500.71666281,0.00017159,2]
[363935978,1748939443131,-500.0,0.00017159,2]
[363935980,1748939443141,-1375.48681057,0.00017176,2]
[363935982,1748939443151,-500.0,0.00017259,2]
[363935984,1748939443161,-440.0,0.0001726,2]
[363935986,1748939443171,-440.0,0.0001726,2]
[363935988,1748939443180,-440.0,0.0001726,2]
[363935991,1748939443194,-440.0,0.0001726,2]
[363935992,1748939443203,-440.0,0.0001726,2]
[363935994,1748939443213,-420.0,0.0001726,2]
[363935996,1748939443223,-420.0,0.0001726,2]
[363935999,1748939443232,-440.0,0.0001726,2]
[363936003,1748939443242,-400.0,0.0001726,2]
[363936006,1748939443251,-279.47771647,0.0001726,2]
[363936009,1748939443260,-440.0,0.0001726,2]
[363936012,1748939443270,-440.0,0.0001726,2]
[363936015,1748939443279,-440.0,0.0001726,2]
[363936017,1748939443289,-440.0,0.0001726,2]
[363936019,1748939443299,-450.0,0.0001726,2]
[363936021,1748939443308,-440.0,0.0001726,2]
[363936024,1748939443318,-400.62505349,0.0001726,2]
[363936026,1748939443328,-440.0,0.0001726,2]
[363936028,1748939443338,-180.0,0.0001726,2]
[363936029,1748939443348,-440.0,0.0001726,2]
[363936031,1748939443360,-440.0,0.0001726,2]
[363936034,1748939443370,-401.26695898,0.0001726,2]
[363936035,1748939443379,-440.0,0.0001726,2]
[363936037,1748939443389,-440.0,0.0001726,2]
[363936039,1748939443401,-430.0,0.0001726,2]
[363936042,1748939443411,-440.0,0.0001726,2]
[363936043,1748939443421,-440.0,0.0001726,2]
[363936045,1748939443430,-440.0,0.0001726,2]
[363936047,1748939443440,-440.0,0.0001726,2]
[363936050,1748939443450,-440.0,0.0001726,2]
[363936052,1748939443460,-510.24,0.0001726,2]
[363936054,1748939443470,-440.0,0.0001726,2]
[363936056,1748939443481,-440.0,0.0001726,2]
[363936058,1748939443490,-1006.71,0.0001726,2]
[363936060,1748939443500,-440.0,0.0001726,2]
[363936062,1748939443510,-440.0,0.0001726,2]
[363936064,1748939443520,-712.75,0.0001726,2]
[363936078,1748939443642,-440.0,0.0001726,2]
[363936080,1748939443652,-1333.21,0.0001726,2]
[363936082,1748939443662,-453.68,0.0001726,2]
[363936084,1748939443673,-1384.31,0.0001726,2]
[363936086,1748939443682,-440.0,0.0001726,2]
[363936088,1748939443692,-1067.12,0.0001726,2]
[363936090,1748939443702,-440.0,0.0001726,2]
[363936092,1748939443712,-474.65,0.0001726,2]
[363936094,1748939443721,-440.0,0.0001726,2]
[363936096,1748939443730,-1378.86,0.0001726,2]
[363936098,1748939443740,-1411.85,0.0001726,2]
[363936101,1748939443750,-1161.93,0.0001726,2]
[363936104,1748939443760,-440.0,0.0001726,2]
[363936107,1748939443770,-440.0,0.0001726,2]
[363936110,1748939443779,-440.0,0.0001726,2]
[363936113,1748939443790,-616.47,0.0001726,2]
[363936116,1748939443799,-440.0,0.0001726,2]
[363936119,1748939443808,-578.06,0.0001726,2]
[363936121,1748939443819,-440.0,0.0001726,2]
[363936123,1748939443829,-738.81,0.0001726,2]
[363936125,1748939443838,-440.0,0.0001726,2]
[363936127,1748939443848,-440.0,0.0001726,2]
[363936129,1748939443857,-691.63,0.0001726,2]
[363936131,1748939443867,-440.0,0.0001726,2]
[363936133,1748939443876,-496.35,0.0001726,2]
[363936135,1748939443886,-440.0,0.0001726,2]
[363936137,1748939443896,-332.96466656,0.0001726,2]
[363936139,1748939443906,-482.04,0.0001726,2]
[363936141,1748939443915,-440.0,0.0001726,2]
[363936143,1748939443925,-440.0,0.0001726,2]
[363936145,1748939443934,-440.0,0.0001726,2]
[363936147,1748939443946,-1530.71,0.0001726,2]
[363936149,1748939443957,-440.0,0.0001726,2]
[363936151,1748939443966,-1375.48681057,0.00017452,2]
[363936153,1748939443975,-305.0,0.000175,2]
[363936155,1748939443984,-500.0,0.00017533,2]
[363936157,1748939443994,-500.0,0.00017533,2]
[363936159,1748939444004,-440.0,0.00017534,2]
[363936161,1748939444014,-350.72174057,0.00017534,2]
[363936163,1748939444028,-540.0,0.00017534,2]
[363936165,1748939444038,-440.0,0.00017534,2]
[363936167,1748939444047,-251.56649641,0.00017534,2]
[363936169,1748939444058,-362.3327829,0.00017534,2]
[363936172,1748939444068,-440.0,0.00017534,2]
[363936173,1748939444076,-440.0,0.00017534,2]
[363936175,1748939444086,-440.0,0.00017534,2]
[363936177,1748939444096,-440.0,0.00017534,2]
[363936179,1748939444106,-344.26369834,0.00017534,2]
[363936181,1748939444116,-440.0,0.00017534,2]
[363936184,1748939444126,-440.0,0.00017534,2]
[363936185,1748939444135,-440.0,0.00017534,2]
[363936188,1748939444145,-440.0,0.00017534,2]
[363936190,1748939444154,-440.0,0.00017534,2]
[363936192,1748939444164,-440.0,0.00017534,2]
[363936194,1748939444173,-440.0,0.00017534,2]
[363936196,1748939444183,-440.0,0.00017534,2]
[363936198,1748939444192,-440.0,0.00017534,2]
[363936199,1748939444201,-440.0,0.00017534,2]
[363936202,1748939444211,-510.24,0.00017534,2]
[363936204,1748939444221,-240.80297109,0.00017534,2]
[363936206,1748939444230,-413.9113173,0.00017534,2]
[363936208,1748939444240,-1006.71,0.00017534,2]
[363936210,1748939444250,-440.0,0.00017534,2]
[363936212,1748939444261,-440.0,0.00017534,2]
[363936214,1748939444270,-712.75,0.00017534,2]
[363936216,1748939444280,-440.0,0.00017534,2]
[363936218,1748939444289,-1333.21,0.00017534,2]
[363936220,1748939444299,-1384.31,0.00017534,2]
[363936222,1748939444309,-440.0,0.00017534,2]
[363936224,1748939444318,-1067.12,0.00017534,2]
[363936226,1748939444328,-440.0,0.00017534,2]
[363936228,1748939444338,-474.65,0.00017534,2]
[363936230,1748939444348,-440.0,0.00017534,2]
[363936232,1748939444358,-1378.86,0.00017534,2]
[363936234,1748939444368,-1411.85,0.00017534,2]
[363936236,1748939444379,-1161.93,0.00017534,2]
[363936238,1748939444388,-540.42,0.00017534,2]
[363936240,1748939444398,-440.0,0.00017534,2]
[363936242,1748939444408,-440.0,0.00017534,2]
[363936244,1748939444418,-616.47,0.00017534,2]
[363936246,1748939444427,-440.0,0.00017534,2]
[363936248,1748939444437,-578.06,0.00017534,2]
[363936250,1748939444447,-440.0,0.00017534,2]
[363936252,1748939444457,-738.81,0.00017534,2]
[363936254,1748939444467,-440.0,0.00017534,2]
[363936256,1748939444477,-440.0,0.00017534,2]
[363936258,1748939444486,-691.63,0.00017534,2]
[363936260,1748939444496,-440.0,0.00017534,2]
[363936262,1748939444505,-496.35,0.00017534,2]
[363936264,1748939444515,-440.0,0.00017534,2]
[363936266,1748939444528,-482.04,0.00017534,2]
[363936268,1748939444537,-440.0,0.00017534,2]
[363936270,1748939444547,-296.41932258,0.00017534,2]
[363936272,1748939444557,-440.0,0.00017534,2]
[363936274,1748939444566,-1530.71,0.00017534,2]
[363936276,1748939444576,-440.0,0.00017534,2]
[363936278,1748939444585,-1000.0,0.00017593,2]
[363936280,1748939444595,-2272.79554806,0.0001764,2]
[363936282,1748939444604,-1000.0,0.00017659,2]
[363936284,1748939444614,-1000.0,0.00017659,2]
[363936286,1748939444624,-788.63107863,0.00017659,2]
[363936288,1748939444634,-510.89426034,0.00017662,2]
[363936290,1748939444643,-502.67348192,0.00017662,2]
[363936292,1748939444653,-501.95007019,0.00017689,2]
[363936294,1748939444663,-501.11559569,0.00017691,2]
[363936296,1748939444672,-500.0,0.00017691,2]
[363936298,1748939444682,-508.07618625,0.00017691,2]
[363936300,1748939444692,-1004.90978063,0.00017691,2]
[363936302,1748939444701,-522.35728032,0.00017707,2]
[363936304,1748939444711,-1375.48681057,0.00017728,2]
[363936306,1748939444720,-500.0,0.00017807,2]
[363936308,1748939444729,-842.5625,0.00017808,3]
[363936310,1748939444739,-265.55,0.00017808,2]
[363936312,1748939444748,-440.0,0.00017808,2]
[363936314,1748939444758,-440.0,0.00017808,2]
[363936316,1748939444767,-440.0,0.00017808,2]
[363936318,1748939444777,-427.58124026,0.00017808,2]
[363936320,1748939444786,-440.0,0.00017808,2]
[363936322,1748939444796,-440.0,0.00017808,2]
[363936324,1748939444806,-440.0,0.00017808,2]
[363936326,1748939444815,-440.0,0.00017808,2]
[363936328,1748939444825,-440.0,0.00017808,2]
[363936330,1748939444835,-440.0,0.00017808,2]
[363936332,1748939444845,-440.0,0.00017808,2]
[363936334,1748939444854,-440.0,0.00017808,2]
[363936336,1748939444864,-458.28,0.00017808,2]
[363936338,1748939444874,-440.0,0.00017808,2]
[363936340,1748939444883,-440.0,0.00017808,2]
[363936342,1748939444893,-510.24,0.00017808,2]
[363936344,1748939444902,-1006.71,0.00017808,2]
[363936346,1748939444912,-440.0,0.00017808,2]
[363936348,1748939444922,-440.0,0.00017808,2]
[363936350,1748939444932,-712.75,0.00017808,2]
[363936352,1748939444941,-440.0,0.00017808,2]
[363936354,1748939444951,-1333.21,0.00017808,2]
[363936356,1748939444961,-1384.31,0.00017808,2]
[363936358,1748939444970,-1067.12,0.00017808,2]
[363936360,1748939444980,-440.0,0.00017808,2]
[363936362,1748939444990,-474.65,0.00017808,2]
[363936364,1748939445000,-440.0,0.00017808,2]
[363936366,1748939445010,-1378.86,0.00017808,2]
[363936368,1748939445024,-1411.85,0.00017808,2]
[363936370,1748939445034,-1161.93,0.00017808,2]
[363936372,1748939445044,-440.0,0.00017808,2]
[363936374,1748939445054,-440.0,0.00017808,2]
[363936376,1748939445063,-616.47,0.00017808,2]
[363936378,1748939445073,-440.0,0.00017808,2]
[363936380,1748939445082,-578.06,0.00017808,2]
[363936382,1748939445092,-440.0,0.00017808,2]
[363936384,1748939445103,-738.81,0.00017808,2]
[363936385,1748939445114,-440.0,0.00017808,2]
[363936386,1748939445123,-440.0,0.00017808,2]
[363936387,1748939445133,-691.63,0.00017808,2]
[363936388,1748939445143,-440.0,0.00017808,2]
[363936389,1748939445153,-496.35,0.00017808,2]
[363936390,1748939445163,-523.02125937,0.00017808,2]
[363936391,1748939445172,-482.04,0.00017808,2]
[363936392,1748939445182,-440.0,0.00017808,2]
[363936393,1748939445192,-440.0,0.00017808,2]
[363936394,1748939445201,-1530.71,0.00017808,2]
[363936395,1748939445211,-440.0,0.00017808,2]
[363936396,1748939445220,-12670.76136593,0.00017921,2]
[363936397,1748939445230,-160.0,0.00017922,2]
[363936398,1748939445240,-842.5625,0.00017922,2]
[363936399,1748939445251,-160.0,0.00017922,2]
[363936400,1748939445261,-212.86879254,0.00017922,2]
[363936401,1748939445271,-423.63107087,0.00017922,2]
[363936402,1748939445280,-160.0,0.00017922,2]
[363936403,1748939445290,-160.0,0.00017922,2]
[363936404,1748939445300,-229.42821335,0.00017922,2]
[363936405,1748939445309,-324.02360528,0.00017989,2]
[363936406,1748939445319,-3296.40430688,0.00018,2]
[363936407,1748939445330,-10063.67448965,0.00018,2]
[363936409,1748939445340,-1375.48681057,0.00018003,2]
[363936411,1748939445351,-440.0,0.00018082,2]
[363936413,1748939445361,-440.0,0.00018082,2]
[363936415,1748939445371,-440.0,0.00018082,2]
[363936417,1748939445381,-440.0,0.00018082,2]
[363936419,1748939445390,-440.0,0.00018082,2]
[363936421,1748939445400,-440.0,0.00018082,2]
[363936423,1748939445410,-440.0,0.00018082,2]
[363936425,1748939445419,-440.0,0.00018082,2]
[363936427,1748939445430,-440.0,0.00018082,2]
[363936429,1748939445439,-440.0,0.00018082,2]
[363936431,1748939445449,-440.0,0.00018082,2]
[363936433,1748939445459,-440.0,0.00018082,2]
[363936435,1748939445469,-440.0,0.00018082,2]
[363936437,1748939445479,-510.24,0.00018082,2]
[363936439,1748939445489,-1006.71,0.00018082,2]
[363936441,1748939445499,-200.32444105,0.00018082,2]
[363936443,1748939445509,-440.0,0.00018082,2]
[363936445,1748939445519,-712.75,0.00018082,2]
[363936447,1748939445529,-440.0,0.00018082,2]
[363936449,1748939445539,-1333.21,0.00018082,2]
[363936451,1748939445548,-1384.31,0.00018082,2]
[363936453,1748939445557,-1067.12,0.00018082,2]
[363936455,1748939445567,-440.0,0.00018082,2]
[363936456,1748939445577,-474.65,0.00018082,2]
[363936457,1748939445587,-440.0,0.00018082,2]
[363936458,1748939445599,-1378.86,0.00018082,2]
[363936459,1748939445609,-1411.85,0.00018082,2]
[363936460,1748939445620,-1161.93,0.00018082,2]
[363936461,1748939445630,-440.0,0.00018082,2]
[363936462,1748939445639,-440.0,0.00018082,2]
[363936463,1748939445650,-616.47,0.00018082,2]
[363936464,1748939445660,-440.0,0.00018082,2]
[363936465,1748939445670,-578.06,0.00018082,2]
[363936466,1748939445681,-440.0,0.00018082,2]
[363936467,1748939445690,-738.81,0.00018082,2]
[363936468,1748939445700,-440.0,0.00018082,2]
[363936469,1748939445711,-440.0,0.00018082,2]
[363936470,1748939445721,-691.63,0.00018082,2]
[363936471,1748939445731,-440.0,0.00018082,2]
[363936472,1748939445741,-496.35,0.00018082,2]
[363936473,1748939445752,-482.04,0.00018082,2]
[363936474,1748939445761,-440.0,0.00018082,2]
[363936475,1748939445771,-385.6,0.00018082,2]
[363936476,1748939445781,-1530.71,0.00018082,2]
[363936477,1748939445791,-305.65369772,0.00018082,2]
[363936478,1748939445800,-159.16702944,0.00018137,3]
[363936479,1748939445810,-518.95928991,0.00018141,2]
[363936480,1748939445819,-1516.1585272,0.00018207,2]
[363936481,1748939445829,-1188.27137293,0.00018207,2]
[363936482,1748939445839,-1375.48681057,0.00018279,2]
[363936483,1748939445852,-579.18,0.00018356,2]
[363936484,1748939445862,-440.0,0.00018356,2]
[363936485,1748939445871,-440.0,0.00018356,2]
[363936486,1748939445881,-440.0,0.00018356,2]
[363936487,1748939445890,-440.0,0.00018356,2]
[363936488,1748939445900,-300.97430423,0.00018356,2]
[363936489,1748939445909,-440.0,0.00018356,2]
[363936490,1748939445919,-440.0,0.00018356,2]
[363936491,1748939445928,-440.0,0.00018356,2]
[363936492,1748939445939,-187.26392787,0.00018356,2]
[363936493,1748939445948,-440.0,0.00018356,2]
[363936494,1748939445958,-388.4,0.00018356,2]
[363936495,1748939445967,-440.0,0.00018356,2]
[363936496,1748939445977,-510.24,0.00018356,2]
[363936497,1748939445987,-1006.71,0.00018356,2]
[363936498,1748939445997,-440.0,0.00018356,2]
[363936499,1748939446007,-712.75,0.00018356,2]
[363936500,1748939446019,-440.0,0.00018356,2]
[363936501,1748939446029,-1333.21,0.00018356,2]
[363936502,1748939446038,-1384.31,0.00018356,2]
[363936503,1748939446048,-1067.12,0.00018356,2]
[363936504,1748939446059,-440.0,0.00018356,2]
[363936506,1748939446069,-474.65,0.00018356,2]
[363936507,1748939446078,-440.0,0.00018356,2]
[363936509,1748939446088,-1378.86,0.00018356,2]
[363936510,1748939446102,-1411.85,0.00018356,2]
[363936511,1748939446111,-1161.93,0.00018356,2]
[363936512,1748939446121,-440.0,0.00018356,2]
[363936514,1748939446141,-440.0,0.00018356,2]
[363936515,1748939446152,-616.47,0.00018356,2]
[363936516,1748939446162,-440.0,0.00018356,2]
[363936517,1748939446172,-578.06,0.00018356,2]
[363936518,1748939446181,-440.0,0.00018356,2]
[363936519,1748939446192,-738.81,0.00018356,2]
[363936520,1748939446202,-440.0,0.00018356,2]
[363936521,1748939446212,-440.0,0.00018356,2]
[363936522,1748939446222,-691.63,0.00018356,2]
[363936523,1748939446232,-440.0,0.00018356,2]
[363936524,1748939446242,-496.35,0.00018356,2]
[363936525,1748939446251,-482.04,0.00018356,2]
[363936526,1748939446261,-440.0,0.00018356,2]
[363936527,1748939446420,-1530.71,0.00018356,2]
[363936528,1748939446431,-501.14098452,0.0001837,2]
[363936529,1748939446441,-2272.79554806,0.00018393,2]
[363936530,1748939446450,-500.0,0.00018456,2]
[363936531,1748939446460,-1375.48681057,0.00018555,2]
[363936532,1748939446470,-207.4,0.00018619,2]
[363936533,1748939446480,-500.0,0.00018619,2]
[363936534,1748939446490,-500.0,0.00018619,2]
[363936535,1748939446500,-500.0,0.00018619,2]
[363936536,1748939446511,-500.0,0.00018619,2]
[363936537,1748939446521,-500.0,0.00018619,2]
[363936538,1748939446530,-500.0,0.00018619,2]
[363936539,1748939446540,-500.0,0.00018619,2]
[363936540,1748939446549,-500.0,0.00018619,2]
[363936541,1748939446559,-535.81843021,0.00018619,2]
[363936542,1748939446569,-440.0,0.0001863,2]
[363936543,1748939446579,-440.0,0.0001863,2]
[363936544,1748939446588,-440.0,0.0001863,2]
[363936545,1748939446599,-230.36132567,0.0001863,2]
[363936546,1748939446609,-440.0,0.0001863,2]
[363936547,1748939446618,-440.0,0.0001863,2]
[363936548,1748939446628,-440.0,0.0001863,2]
[363936549,1748939446638,-440.0,0.0001863,2]
[363936550,1748939446647,-440.0,0.0001863,2]
[363936551,1748939446657,-510.24,0.0001863,2]
[363936553,1748939446667,-1006.71,0.0001863,2]
[363936555,1748939446676,-440.0,0.0001863,2]
[363936557,1748939446686,-712.75,0.0001863,2]
[363936558,1748939446695,-440.0,0.0001863,2]
[363936559,1748939446705,-1333.21,0.0001863,2]
[363936560,1748939446716,-1384.31,0.0001863,2]
[363936561,1748939446726,-1067.12,0.0001863,2]
[363936562,1748939446736,-440.0,0.0001863,2]
[363936563,1748939446746,-474.65,0.0001863,2]
[363936565,1748939446756,-440.0,0.0001863,2]
[363936567,1748939446765,-1378.86,0.0001863,2]
[363936569,1748939446775,-1411.85,0.0001863,2]
[363936571,1748939446784,-1161.93,0.0001863,2]
[363936573,1748939446794,-440.0,0.0001863,2]
[363936575,1748939446803,-440.0,0.0001863,2]
[363936577,1748939446812,-616.47,0.0001863,2]
[363936579,1748939446822,-440.0,0.0001863,2]
[363936581,1748939446831,-578.06,0.0001863,2]
[363936583,1748939446841,-440.0,0.0001863,2]
[363936585,1748939446853,-738.81,0.0001863,2]
[363936587,1748939446862,-440.0,0.0001863,2]
[363936589,1748939446872,-440.0,0.0001863,2]
[363936591,1748939446881,-691.63,0.0001863,2]
[363936593,1748939446891,-440.0,0.0001863,2]
[363936595,1748939446901,-496.35,0.0001863,2]
[363936597,1748939446911,-482.04,0.0001863,2]
[363936599,1748939446920,-440.0,0.0001863,2]
[363936601,1748939446930,-1530.71,0.0001863,2]
[363936603,1748939446940,-1375.48681057,0.00018831,2]
[363936605,1748939446950,-440.0,0.00018904,2]
[363936607,1748939446959,-440.0,0.00018904,2]
[363936609,1748939446969,-440.0,0.00018904,2]
[363936611,1748939446978,-440.0,0.00018904,2]
[363936613,1748939446988,-440.0,0.00018904,2]
[363936615,1748939446998,-440.0,0.00018904,2]
[363936617,1748939447009,-440.0,0.00018904,2]
[363936619,1748939447021,-510.24,0.00018904,2]
[363936621,1748939447031,-1006.71,0.00018904,2]
[363936623,1748939447040,-440.0,0.00018904,2]
[363936625,1748939447050,-712.75,0.00018904,2]
[363936626,1748939447060,-440.0,0.00018904,2]
[363936629,1748939447070,-1333.21,0.00018904,2]
[363936631,1748939447080,-1384.31,0.00018904,2]
[363936632,1748939447091,-1067.12,0.00018904,2]
[363936635,1748939447103,-440.0,0.00018904,2]
[363936637,1748939447112,-474.65,0.00018904,2]
[363936639,1748939447121,-440.0,0.00018904,2]
[363936641,1748939447132,-1378.86,0.00018904,2]
[363936643,1748939447141,-1411.85,0.00018904,2]
[363936645,1748939447150,-1161.93,0.00018904,2]
[363936647,1748939447160,-440.0,0.00018904,2]
[363936649,1748939447170,-440.0,0.00018904,2]
[363936651,1748939447180,-616.47,0.00018904,2]
[363936652,1748939447191,-440.0,0.00018904,2]
[363936655,1748939447201,-578.06,0.00018904,2]
[363936656,1748939447212,-440.0,0.00018904,2]
[363936659,1748939447222,-738.81,0.00018904,2]
[363936661,1748939447232,-440.0,0.00018904,2]
[363936662,1748939447242,-440.0,0.00018904,2]
[363936664,1748939447251,-691.63,0.00018904,2]
[363936665,1748939447262,-440.0,0.00018904,2]
[363936666,1748939447272,-496.35,0.00018904,2]
[363936667,1748939447281,-482.04,0.00018904,2]
[363936668,1748939447291,-440.0,0.00018904,2]
[363936669,1748939447302,-1530.71,0.00018904,2]
[363936670,1748939447312,-155.56071019,0.00019,2]
[363936671,1748939447322,-544.7114402,0.00019004,2]
[363936672,1748939447332,-545.54701111,0.00019035,2]
[363936673,1748939447343,-1375.48681057,0.00019107,2]
[363936674,1748939447355,-2272.79554806,0.00019147,2]
[363936675,1748939447365,-440.0,0.00019178,2]
[363936676,1748939447376,-440.0,0.00019178,2]
[363936677,1748939447386,-440.0,0.00019178,2]
[363936678,1748939447395,-440.0,0.00019178,2]
[363936679,1748939447405,-440.0,0.00019178,2]
[363936680,1748939447415,-440.0,0.00019178,2]
[363936681,1748939447425,-430.0,0.00019178,2]
[363936682,1748939447435,-440.0,0.00019178,2]
[363936683,1748939447445,-440.0,0.00019178,2]
[363936684,1748939447455,-510.24,0.00019178,2]
[363936686,1748939447465,-1006.71,0.00019178,2]
[363936688,1748939447475,-338.44,0.00019178,2]
[363936689,1748939447485,-712.75,0.00019178,2]
[363936691,1748939447494,-440.0,0.00019178,2]
[363936693,1748939447504,-1333.21,0.00019178,2]
[363936695,1748939447514,-1384.31,0.00019178,2]
[363936697,1748939447524,-1067.12,0.00019178,2]
[363936699,1748939447534,-440.0,0.00019178,2]
[363936701,1748939447543,-474.65,0.00019178,2]
[363936704,1748939447554,-440.0,0.00019178,2]
[363936706,1748939447564,-1378.86,0.00019178,2]
[363936708,1748939447574,-1411.85,0.00019178,2]
[363936710,1748939447583,-1161.93,0.00019178,2]
[363936712,1748939447593,-440.0,0.00019178,2]
[363936714,1748939447603,-440.0,0.00019178,2]
[363936716,1748939447613,-616.47,0.00019178,2]
[363936717,1748939447623,-578.06,0.00019178,2]
[363936719,1748939447632,-440.0,0.00019178,2]
[363936721,1748939447642,-440.0,0.00019178,2]
[363936723,1748939447652,-738.81,0.00019178,2]
[363936725,1748939447661,-410.0,0.00019178,2]
[363936727,1748939447671,-440.0,0.00019178,2]
[363936729,1748939447680,-691.63,0.00019178,2]
[363936731,1748939447690,-440.0,0.00019178,2]
[363936733,1748939447700,-496.35,0.00019178,2]
[363936735,1748939447710,-482.04,0.00019178,2]
[363936737,1748939447720,-440.0,0.00019178,2]
[363936739,1748939447730,-1530.71,0.00019178,2]
[363936741,1748939447740,-151.0,0.00019178,2]
[363936743,1748939447750,-208.147301,0.00019178,2]
[363936746,1748939447760,-156.587,0.00019233,2]
[363936748,1748939447769,-162.380719,0.00019288,2]
[363936750,1748939447779,-168.3888056,0.00019343,2]
[363936752,1748939447789,-1375.48681057,0.00019383,2]
[363936754,1748939447798,-174.61919141,0.00019398,2]
[363936756,1748939447808,-388748.65135236,0.000194,2]
[363936758,1748939447817,-188.50105624,0.000194,2]
[363936760,1748939447827,-1178.899426,0.00019404,2]
[363936762,1748939447837,-440.0,0.00019452,2]
[363936764,1748939447847,-440.0,0.00019452,2]
[363936766,1748939447856,-440.0,0.00019452,2]
[363936768,1748939447866,-440.0,0.00019452,2]
[363936770,1748939447875,-440.0,0.00019452,2]
[363936772,1748939447885,-440.0,0.00019452,2]
[363936774,1748939447894,-440.0,0.00019452,2]
[363936776,1748939447904,-510.24,0.00019452,2]
[363936778,1748939447913,-1006.71,0.00019452,2]
[363936780,1748939447923,-712.75,0.00019452,2]
[363936782,1748939447932,-440.0,0.00019452,2]
[363936784,1748939447941,-1333.21,0.00019452,2]
[363936786,1748939447951,-1384.31,0.00019452,2]
[363936788,1748939447961,-1067.12,0.00019452,2]
[363936790,1748939447971,-440.0,0.00019452,2]
[363936792,1748939447981,-474.65,0.00019452,2]
[363936794,1748939447990,-468.13432384,0.00019452,2]
[363936796,1748939448000,-1378.86,0.00019452,2]
[363936798,1748939448010,-1411.85,0.00019452,2]
[363936800,1748939448022,-1161.93,0.00019452,2]
[363936802,1748939448032,-440.0,0.00019452,2]
[363936804,1748939448042,-440.0,0.00019452,2]
[363936806,1748939448052,-616.47,0.00019452,2]
[363936808,1748939448063,-578.06,0.00019452,2]
[363936810,1748939448072,-563.69,0.00019452,2]
[363936812,1748939448081,-440.0,0.00019452,2]
[363936814,1748939448091,-738.81,0.00019452,2]
[363936816,1748939448104,-440.0,0.00019452,2]